[Event "European Women's Chess Championship (49-84)"]
[Site "Batumi, Georgia"]
[Date "2026.05.25"]
[Round "1.56"]
[White "Diasamidze, Lulu"]
[Black "Radeva, Viktoria"]
[Result "1/2-1/2"]
[TimeControl "90min /40moves + 30min + 30-sec increment from move 1"]
[WhiteTitle "-"]
[BlackTitle "-"]
[WhiteFideId "13623818"]
[BlackFideId "2915405"]
[WhiteElo "1924"]
[BlackElo "2242"]

1. e4 {[%clk 01:30:54]} {[%emt 00:00:07]} e6 {[%clk 01:30:50]} {[%emt
00:00:10]} 2. d4 {[%clk 01:31:12]} {[%emt 00:00:11]} d5 {[%clk 01:31:16]}
{[%emt 00:00:04]} 3. Nc3 {[%clk 01:31:38]} {[%emt 00:00:04]} Nf6 {[%clk
01:31:24]} {[%emt 00:00:22]} 4. e5 {[%clk 01:32:03]} {[%emt 00:00:05]} Nfd7
{[%clk 01:31:49]} {[%emt 00:00:06]} 5. f4 {[%clk 01:31:37]} {[%emt 00:00:56]}
c5 {[%clk 01:32:00]} {[%emt 00:00:19]} 6. Nf3 {[%clk 01:32:00]} {[%emt
00:00:07]} Nc6 {[%clk 01:32:19]} {[%emt 00:00:11]} 7. Be3 {[%clk 01:29:35]}
{[%emt 00:02:54]} a6 {[%clk 01:32:20]} {[%emt 00:00:29]} 8. Qd2 {[%clk
01:21:07]} {[%emt 00:08:59]} Be7 {[%clk 01:31:57]} {[%emt 00:00:53]} 9. Be2
{[%clk 01:10:33]} {[%emt 00:11:03]} b5 {[%clk 01:28:16]} {[%emt 00:04:12]} 10.
dxc5 {[%clk 01:08:55]} {[%emt 00:02:07]} Nxc5 {[%clk 01:26:38]} {[%emt
00:02:08]} 11. a3 {[%clk 01:07:09]} {[%emt 00:02:16]} Bb7 {[%clk 01:15:14]}
{[%emt 00:11:55]} 12. O-O {[%clk 01:06:05]} {[%emt 00:01:31]} O-O {[%clk
01:13:53]} {[%emt 00:01:54]} 13. Nd4 {[%clk 01:04:17]} {[%emt 00:02:15]} Ne4
{[%clk 01:09:27]} {[%emt 00:04:58]} 14. Nxe4 {[%clk 01:03:12]} {[%emt
00:01:35]} dxe4 {[%clk 01:09:53]} {[%emt 00:00:04]} 15. Rad1 {[%clk 00:58:45]}
{[%emt 00:04:57]} Nxd4 {[%clk 01:03:21]} {[%emt 00:07:03]} 16. Qxd4 {[%clk
00:56:25]} {[%emt 00:02:49]} Qxd4 {[%clk 00:59:17]} {[%emt 00:04:34]} 17. Bxd4
{[%clk 00:56:42]} {[%emt 00:00:13]} Rac8 {[%clk 00:59:32]} {[%emt 00:00:15]} 18.
c3 {[%clk 00:55:51]} {[%emt 00:01:21]} Bd5 {[%clk 00:55:17]} {[%emt 00:04:45]}
19. Kf2 {[%clk 00:54:24]} {[%emt 00:01:57]} Rc6 {[%clk 00:42:38]} {[%emt
00:13:08]} 20. Ke3 {[%clk 00:52:30]} {[%emt 00:02:24]} Rb8 {[%clk 00:41:31]}
{[%emt 00:01:38]} 21. Rc1 {[%clk 00:43:09]} {[%emt 00:09:51]} f5 {[%clk
00:39:54]} {[%emt 00:02:07]} 22. Rg1 {[%clk 00:23:50]} {[%emt 00:19:49]} Kf7
{[%clk 00:37:27]} {[%emt 00:02:56]} 23. g4 {[%clk 00:20:59]} {[%emt 00:03:22]}
g6 {[%clk 00:32:21]} {[%emt 00:05:35]} 24. Rh1 {[%clk 00:12:52]} {[%emt
00:08:37]} h6 {[%clk 00:27:28]} {[%emt 00:05:23]} 25. h4 {[%clk 00:12:48]}
{[%emt 00:00:35]} Bb3 {[%clk 00:25:23]} {[%emt 00:02:35]} 26. Bd1 {[%clk
00:08:59]} {[%emt 00:04:18]} Bc4 {[%clk 00:25:10]} {[%emt 00:00:43]} 27. Be2
{[%clk 00:08:27]} {[%emt 00:01:03]} a5 {[%clk 00:21:51]} {[%emt 00:03:49]} 28.
b4 {[%clk 00:07:27]} {[%emt 00:01:29]} Ra8 {[%clk 00:16:40]} {[%emt 00:05:41]}
29. gxf5 {[%clk 00:04:07]} {[%emt 00:03:50]} exf5 {[%clk 00:16:39]} {[%emt
00:00:31]} 30. Bxc4+ {[%clk 00:03:30]} {[%emt 00:01:07]} Rxc4 {[%clk 00:15:44]}
{[%emt 00:01:24]} 31. Rhg1 {[%clk 00:03:59]} {[%emt 00:00:02]} Rc6 {[%clk
00:14:56]} {[%emt 00:01:18]} 32. a4 {[%clk 00:03:04]} {[%emt 00:01:26]} bxa4
{[%clk 00:12:37]} {[%emt 00:02:50]} 33. b5 {[%clk 00:03:07]} {[%emt 00:00:27]}
Re6 {[%clk 00:04:42]} {[%emt 00:08:25]} 34. c4 {[%clk 00:03:20]} {[%emt
00:00:17]} Rb8 {[%clk 00:04:58]} {[%emt 00:00:13]} 35. Ra1 {[%clk 00:03:17]}
{[%emt 00:00:33]} a3 {[%clk 00:05:02]} {[%emt 00:00:27]} 36. Rgb1 {[%clk
00:03:42]} {[%emt 00:00:05]} Bb4 {[%clk 00:04:53]} {[%emt 00:00:39]} 37. Rg1
{[%clk 00:01:53]} {[%emt 00:02:19]} Rc8 {[%clk 00:02:51]} {[%emt 00:02:32]} 38.
Rgc1 {[%clk 00:01:39]} {[%emt 00:00:44]} g5 {[%clk 00:02:16]} {[%emt 00:01:05]}
39. fxg5 {[%clk 00:01:32]} {[%emt 00:00:37]} hxg5 {[%clk 00:02:40]} {[%emt
00:00:06]} 40. hxg5 {[%clk 00:01:31]} {[%emt 00:00:31]} Rg6 {[%clk 00:02:09]}
{[%emt 00:01:01]} 41. b6 {[%clk 00:18:12]} {[%emt 00:15:19]} Ke6 {[%clk
00:21:11]} {[%emt 00:11:27]} 42. c5 {[%clk 00:14:47]} {[%emt 00:03:56]} Kd5
{[%clk 00:17:02]} {[%emt 00:04:39]} 43. Rd1 {[%clk 00:14:42]} {[%emt 00:00:35]}
Kc6 {[%clk 00:12:12]} {[%emt 00:05:19]} 44. Rh1 {[%clk 00:11:59]} {[%emt
00:03:14]} Rxg5 {[%clk 00:11:31]} {[%emt 00:01:10]} 45. Rh6+ {[%clk 00:12:15]}
{[%emt 00:00:14]} Kb7 {[%clk 00:10:40]} {[%emt 00:01:21]} 46. Rh7+ {[%clk
00:10:45]} {[%emt 00:02:00]} Kc6 {[%clk 00:10:00]} {[%emt 00:01:10]} 47. Rh6+
{[%clk 00:11:02]} {[%emt 00:00:13]} Kb7 {[%clk 00:09:34]} {[%emt 00:00:57]} 48.
Rh7+ {[%clk 00:11:31]} Kc6 {[%clk 00:09:10]} {[%emt 00:00:55]} 49. Rh6+ {[%clk
00:10:17]} {[%emt 00:01:43]} Kb7 {[%emt 00:01:28]} 1/2-1/2

[Event "European Women's Chess Championship (49-84)"]
[Site "Batumi, Georgia"]
[Date "2026.05.25"]
[Round "1.57"]
[White "Zherebtsova, Alexandra"]
[Black "Koghuashvili, Tekla"]
[Result "1-0"]
[TimeControl "90min /40moves + 30min + 30-sec increment from move 1"]
[WhiteTitle "-"]
[BlackTitle "-"]
[WhiteFideId "24129518"]
[BlackFideId "13621564"]
[WhiteElo "2242"]
[BlackElo "1921"]

1. d4 {[%clk 01:30:54]} {[%emt 00:00:05]} Nf6 {[%clk 01:30:54]} {[%emt
00:00:06]} 2. Bf4 {[%clk 01:31:03]} {[%emt 00:00:21]} d5 {[%clk 01:31:14]}
{[%emt 00:00:11]} 3. e3 {[%clk 01:30:57]} {[%emt 00:00:36]} c5 {[%clk
01:31:21]} {[%emt 00:00:23]} 4. Nf3 {[%clk 01:30:35]} {[%emt 00:00:51]} Nc6
{[%clk 01:31:43]} {[%emt 00:00:09]} 5. Nbd2 {[%clk 01:30:25]} {[%emt 00:00:40]}
e6 {[%clk 01:31:56]} {[%emt 00:00:17]} 6. c3 {[%clk 01:30:34]} {[%emt
00:00:21]} cxd4 {[%clk 01:32:01]} {[%emt 00:00:25]} 7. exd4 {[%clk 01:30:47]}
{[%emt 00:00:17]} Nh5 {[%clk 01:32:23]} {[%emt 00:00:08]} 8. Be3 {[%clk
01:31:03]} {[%emt 00:00:14]} Bd6 {[%clk 01:32:12]} {[%emt 00:00:41]} 9. Ne5
{[%clk 01:30:19]} {[%emt 00:01:14]} g6 {[%clk 01:32:35]} {[%emt 00:00:07]} 10.
Nd3 {[%clk 01:19:11]} {[%emt 00:11:38]} f6 {[%clk 01:13:59]} {[%emt 00:19:06]}
11. Bh6 {[%clk 00:58:22]} {[%emt 00:21:19]} Qe7 {[%clk 01:11:27]} {[%emt
00:03:01]} 12. Qe2 {[%clk 00:50:42]} {[%emt 00:08:10]} e5 {[%clk 00:59:42]}
{[%emt 00:12:15]} 13. g4 {[%clk 00:46:50]} {[%emt 00:04:22]} Ng7 {[%clk
00:56:27]} {[%emt 00:03:45]} 14. Bg2 {[%clk 00:43:14]} {[%emt 00:04:05]} e4
{[%clk 00:40:23]} {[%emt 00:16:35]} 15. Nf4 {[%clk 00:37:12]} {[%emt 00:06:33]}
Bxf4 {[%clk 00:40:01]} {[%emt 00:00:52]} 16. Bxf4 {[%clk 00:37:39]} {[%emt
00:00:02]} Ne6 {[%clk 00:40:20]} {[%emt 00:00:12]} 17. Qe3 {[%clk 00:32:29]}
{[%emt 00:05:40]} h5 {[%clk 00:22:20]} {[%emt 00:18:29]} 18. h3 {[%clk
00:26:10]} {[%emt 00:06:49]} hxg4 {[%clk 00:19:18]} {[%emt 00:03:32]} 19. hxg4
{[%clk 00:26:24]} {[%emt 00:00:16]} Rxh1+ {[%clk 00:19:42]} {[%emt 00:00:06]}
20. Bxh1 {[%clk 00:26:52]} {[%emt 00:00:02]} Nxf4 {[%clk 00:19:37]} {[%emt
00:00:36]} 21. Qxf4 {[%clk 00:27:17]} {[%emt 00:00:04]} g5 {[%clk 00:19:50]}
{[%emt 00:00:17]} 22. Qg3 {[%clk 00:21:03]} {[%emt 00:06:44]} Qe6 {[%clk
00:18:32]} {[%emt 00:01:49]} 23. O-O-O {[%clk 00:15:35]} {[%emt 00:05:58]} Qxg4
{[%clk 00:18:11]} {[%emt 00:00:51]} 24. Qh2 {[%clk 00:11:05]} {[%emt 00:04:59]}
Qf4 {[%clk 00:14:17]} {[%emt 00:04:24]} 25. Qh8+ {[%clk 00:06:34]} {[%emt
00:05:01]} Kd7 {[%clk 00:14:30]} {[%emt 00:00:17]} 26. c4 {[%clk 00:03:48]}
{[%emt 00:03:16]} Ne7 {[%clk 00:07:46]} {[%emt 00:07:14]} 27. cxd5 {[%clk
00:03:05]} {[%emt 00:01:14]} f5 {[%clk 00:07:26]} {[%emt 00:00:49]} 28. Kb1
{[%clk 00:02:15]} {[%emt 00:01:20]} Nxd5 {[%clk 00:01:40]} {[%emt 00:06:16]} 29.
Nc4 {[%clk 00:01:27]} {[%emt 00:01:18]} b5 {[%clk 00:01:38]} {[%emt 00:00:33]}
30. Ne5+ {[%clk 00:01:39]} {[%emt 00:00:17]} Kc7 {[%clk 00:01:21]} {[%emt
00:00:48]} 31. Rc1+ {[%clk 00:01:17]} {[%emt 00:00:51]} Kb7 {[%clk 00:01:24]}
{[%emt 00:00:26]} 32. Qe8 {[%clk 00:00:41]} {[%emt 00:01:08]} Nb6 {[%clk
00:01:03]} {[%emt 00:00:50]} 33. Qxb5 {[%clk 00:00:46]} {[%emt 00:00:26]} Rb8
{[%clk 00:00:47]} {[%emt 00:00:47]} 34. Qc6+ {[%clk 00:00:49]} {[%emt
00:00:26]} Ka6 {[%clk 00:01:10]} {[%emt 00:00:07]} 35. Rc3 {[%clk 00:00:41]}
{[%emt 00:00:38]} Qd2 {[%clk 00:00:42]} {[%emt 00:00:58]} 36. Ra3+ {[%clk
00:00:54]} {[%emt 00:00:16]} Qa5 {[%clk 00:01:02]} {[%emt 00:00:10]} 37. Rxa5+
{[%clk 00:00:57]} {[%emt 00:00:28]} Kxa5 {[%clk 00:01:26]} {[%emt 00:00:06]} 38.
Bg2 {[%clk 00:00:54]} {[%emt 00:00:33]} Ba6 {[%clk 00:01:26]} {[%emt 00:00:30]}
39. Qc5+ {[%clk 00:01:12]} {[%emt 00:00:12]} Bb5 {[%clk 00:01:49]} {[%emt
00:00:06]} 40. Nc6+ {[%clk 00:01:24]} {[%emt 00:00:18]} 1-0

[Event "European Women's Chess Championship (49-84)"]
[Site "Batumi, Georgia"]
[Date "2026.05.25"]
[Round "1.58"]
[White "Ashotia, Barbare"]
[Black "Szczotka, Klara"]
[Result "1-0"]
[TimeControl "90min /40moves + 30min + 30-sec increment from move 1"]
[WhiteTitle "-"]
[BlackTitle "-"]
[WhiteFideId "13625187"]
[BlackFideId "21858845"]
[WhiteElo "1913"]
[BlackElo "2241"]

1. e4 {[%clk 01:30:55]} {[%emt 00:00:04]} c6 {[%clk 01:30:44]} {[%emt
00:00:18]} 2. d4 {[%clk 01:31:14]} {[%emt 00:00:10]} d5 {[%clk 01:31:08]}
{[%emt 00:00:06]} 3. e5 {[%clk 01:31:31]} {[%emt 00:00:13]} Bf5 {[%clk
01:31:19]} {[%emt 00:00:18]} 4. Nc3 {[%clk 01:31:42]} {[%emt 00:00:19]} e6
{[%clk 01:30:50]} {[%emt 00:01:00]} 5. g4 {[%clk 01:31:50]} {[%emt 00:00:22]}
Bg6 {[%clk 01:31:12]} {[%emt 00:00:09]} 6. Nge2 {[%clk 01:31:59]} {[%emt
00:00:20]} h6 {[%clk 01:26:08]} {[%emt 00:05:34]} 7. Be3 {[%clk 01:26:24]}
{[%emt 00:06:05]} Nd7 {[%clk 01:25:03]} {[%emt 00:01:36]} 8. h4 {[%clk
01:19:30]} {[%emt 00:07:23]} Qb6 {[%clk 01:20:05]} {[%emt 00:05:28]} 9. h5
{[%clk 01:10:18]} {[%emt 00:09:42]} Bh7 {[%clk 01:20:22]} {[%emt 00:00:13]} 10.
Qd2 {[%clk 01:08:55]} {[%emt 00:01:53]} Qxb2 {[%clk 01:10:55]} {[%emt
00:09:58]} 11. Rb1 {[%clk 01:08:56]} {[%emt 00:00:28]} Qxc2 {[%clk 01:11:09]}
{[%emt 00:00:16]} 12. Rxb7 {[%clk 01:08:47]} {[%emt 00:00:39]} Qxd2+ {[%clk
01:10:29]} {[%emt 00:01:09]} 13. Kxd2 {[%clk 01:08:41]} {[%emt 00:00:36]} Nb6
{[%clk 01:08:26]} {[%emt 00:02:34]} 14. Nc1 {[%clk 01:04:58]} {[%emt 00:04:14]}
Bb4 {[%clk 01:01:42]} {[%emt 00:07:13]} 15. Bd3 {[%clk 00:59:11]} {[%emt
00:06:17]} Bxd3 {[%clk 00:55:33]} {[%emt 00:06:39]} 16. Nxd3 {[%clk 00:55:40]}
{[%emt 00:04:00]} Ba5 {[%clk 00:53:52]} {[%emt 00:02:12]} 17. Nc5 {[%clk
00:55:01]} {[%emt 00:01:09]} Ne7 {[%clk 00:42:22]} {[%emt 00:12:00]} 18. Kd3
{[%clk 00:51:01]} {[%emt 00:04:30]} Nc4 {[%clk 00:36:49]} {[%emt 00:06:03]} 19.
N3a4 {[%clk 00:42:54]} {[%emt 00:08:37]} Bb6 {[%clk 00:30:28]} {[%emt
00:06:51]} 20. Bd2 {[%clk 00:40:13]} {[%emt 00:03:11]} Nc8 {[%clk 00:24:36]}
{[%emt 00:06:22]} 21. f4 {[%clk 00:36:20]} {[%emt 00:04:23]} Ba5 {[%clk
00:15:05]} {[%emt 00:10:02]} 22. Bxa5 {[%clk 00:27:30]} {[%emt 00:09:20]} Nxa5
{[%clk 00:15:18]} {[%emt 00:00:17]} 23. Rc7 {[%clk 00:27:39]} {[%emt 00:00:20]}
Nb6 {[%clk 00:09:36]} {[%emt 00:06:12]} 24. f5 {[%clk 00:25:02]} {[%emt
00:03:06]} Nxa4 {[%clk 00:06:16]} {[%emt 00:03:50]} 25. Nxa4 {[%clk 00:25:24]}
{[%emt 00:00:09]} O-O {[%clk 00:06:22]} {[%emt 00:00:25]} 26. Nc5 {[%clk
00:25:14]} {[%emt 00:00:39]} exf5 {[%clk 00:04:51]} {[%emt 00:02:00]} 27. gxf5
{[%clk 00:25:38]} {[%emt 00:00:07]} Rfc8 {[%clk 00:04:55]} {[%emt 00:00:27]} 28.
Rd7 {[%clk 00:18:33]} {[%emt 00:07:34]} Rd8 {[%clk 00:04:36]} {[%emt 00:00:49]}
29. Rxd8+ {[%clk 00:17:44]} {[%emt 00:01:19]} Rxd8 {[%clk 00:05:01]} {[%emt
00:00:05]} 30. Rb1 {[%clk 00:18:08]} {[%emt 00:00:06]} Re8 {[%clk 00:03:32]}
{[%emt 00:01:59]} 31. Rb4 {[%clk 00:17:30]} {[%emt 00:01:08]} Ra8 {[%clk
00:02:08]} {[%emt 00:01:55]} 32. Ra4 {[%clk 00:15:41]} {[%emt 00:02:19]} Nc4
{[%clk 00:02:31]} {[%emt 00:00:07]} 33. Ra6 {[%clk 00:16:03]} {[%emt 00:00:08]}
Nb6 {[%clk 00:02:01]} {[%emt 00:00:59]} 34. a4 {[%clk 00:16:13]} {[%emt
00:00:20]} Kf8 {[%clk 00:01:26]} {[%emt 00:01:05]} 35. a5 {[%clk 00:16:26]}
{[%emt 00:00:17]} Nc4 {[%clk 00:01:29]} {[%emt 00:00:26]} 36. Nd7+ {[%clk
00:12:42]} {[%emt 00:04:14]} Ke8 {[%clk 00:00:41]} {[%emt 00:01:19]} 37. Nb6
{[%clk 00:13:05]} {[%emt 00:00:07]} Rb8 {[%clk 00:00:34]} {[%emt 00:00:38]} 38.
Nxc4 {[%clk 00:13:27]} {[%emt 00:00:07]} dxc4+ {[%clk 00:00:33]} {[%emt
00:00:31]} 39. Kxc4 {[%clk 00:13:49]} {[%emt 00:00:09]} Rb7 {[%clk 00:00:39]}
{[%emt 00:00:23]} 40. Rxc6 {[%clk 00:13:53]} {[%emt 00:00:26]} Kd7 {[%clk
00:00:40]} {[%emt 00:00:28]} 41. d5 {[%clk 00:14:08]} {[%emt 00:00:16]} Rb1
{[%clk 00:00:40]} {[%emt 00:00:30]} 42. e6+ {[%clk 00:14:23]} {[%emt 00:00:14]}
fxe6 {[%clk 00:00:46]} {[%emt 00:00:24]} 43. fxe6+ {[%clk 00:14:45]} {[%emt
00:00:09]} Kd8 {[%clk 00:00:55]} {[%emt 00:00:21]} 44. Kc5 {[%clk 00:14:39]}
{[%emt 00:00:35]} 1-0

[Event "European Women's Chess Championship (49-84)"]
[Site "Batumi, Georgia"]
[Date "2026.05.25"]
[Round "1.59"]
[White "Peglau, Charis"]
[Black "Giorgadze, Mariam Ere"]
[Result "1-0"]
[TimeControl "90min /40moves + 30min + 30-sec increment from move 1"]
[WhiteTitle "-"]
[BlackTitle "-"]
[WhiteFideId "16219996"]
[BlackFideId "13636839"]
[WhiteElo "2238"]
[BlackElo "1909"]

1. Nf3 {[%clk 01:30:57]} {[%emt 00:00:02]} Nf6 {[%clk 01:30:51]} {[%emt
00:00:10]} 2. g3 {[%clk 01:31:20]} {[%emt 00:00:07]} g6 {[%clk 01:31:15]}
{[%emt 00:00:06]} 3. Bg2 {[%clk 01:31:44]} {[%emt 00:00:06]} Bg7 {[%clk
01:31:40]} {[%emt 00:00:06]} 4. c4 {[%clk 01:31:59]} {[%emt 00:00:15]} O-O
{[%clk 01:31:59]} {[%emt 00:00:10]} 5. Nc3 {[%clk 01:32:03]} {[%emt 00:00:26]}
d6 {[%clk 01:32:12]} {[%emt 00:00:18]} 6. O-O {[%clk 01:32:01]} {[%emt
00:00:32]} Nbd7 {[%clk 01:32:19]} {[%emt 00:00:22]} 7. b4 {[%clk 01:31:19]}
{[%emt 00:01:12]} e5 {[%clk 01:23:14]} {[%emt 00:09:35]} 8. Rb1 {[%clk
01:29:32]} {[%emt 00:02:16]} Nh5 {[%clk 01:14:53]} {[%emt 00:08:51]} 9. d3
{[%clk 01:26:28]} {[%emt 00:03:35]} h6 {[%clk 01:13:04]} {[%emt 00:02:19]} 10.
e4 {[%clk 01:20:11]} {[%emt 00:06:47]} Re8 {[%clk 01:06:17]} {[%emt 00:07:17]}
11. Be3 {[%clk 01:18:51]} {[%emt 00:01:50]} Ndf6 {[%clk 00:50:13]} {[%emt
00:16:34]} 12. h3 {[%clk 01:18:13]} {[%emt 00:01:08]} Be6 {[%clk 00:46:29]}
{[%emt 00:04:15]} 13. Qd2 {[%clk 01:08:00]} {[%emt 00:10:42]} Kh7 {[%clk
00:36:16]} {[%emt 00:10:43]} 14. g4 {[%clk 01:06:25]} {[%emt 00:02:05]} Nf4
{[%clk 00:36:38]} {[%emt 00:00:08]} 15. Bxf4 {[%clk 01:06:49]} {[%emt
00:00:06]} exf4 {[%clk 00:37:03]} {[%emt 00:00:05]} 16. Qxf4 {[%clk 01:07:05]}
{[%emt 00:00:14]} g5 {[%clk 00:09:35]} {[%emt 00:27:59]} 17. Qd2 {[%clk
01:06:28]} {[%emt 00:01:06]} Nd7 {[%clk 00:09:44]} {[%emt 00:00:21]} 18. Ne2
{[%clk 01:05:30]} {[%emt 00:01:27]} Rb8 {[%clk 00:06:38]} {[%emt 00:03:37]} 19.
Qc2 {[%clk 01:01:31]} {[%emt 00:04:29]} c5 {[%clk 00:05:10]} {[%emt 00:01:58]}
20. d4 {[%clk 01:00:59]} {[%emt 00:01:02]} Nb6 {[%clk 00:02:57]} {[%emt
00:02:44]} 21. d5 {[%clk 00:59:44]} {[%emt 00:01:44]} Bd7 {[%clk 00:03:10]}
{[%emt 00:00:18]} 22. bxc5 {[%clk 00:58:16]} {[%emt 00:01:57]} dxc5 {[%clk
00:03:25]} {[%emt 00:00:15]} 23. Ng3 {[%clk 00:57:27]} {[%emt 00:01:18]} Be5
{[%clk 00:02:15]} {[%emt 00:01:41]} 24. Nxe5 {[%clk 00:57:29]} {[%emt
00:00:28]} Rxe5 {[%clk 00:02:44]} 25. f4 {[%clk 00:57:20]} {[%emt 00:00:39]}
gxf4 {[%clk 00:02:03]} {[%emt 00:01:11]} 26. Rxf4 {[%clk 00:57:40]} {[%emt
00:00:09]} Qe7 {[%clk 00:01:56]} {[%emt 00:00:37]} 27. Rbf1 {[%clk 00:57:22]}
{[%emt 00:00:48]} Rf8 {[%clk 00:01:56]} {[%emt 00:00:30]} 28. Rf6 {[%clk
00:54:27]} {[%emt 00:03:25]} Nc8 {[%clk 00:01:23]} {[%emt 00:01:03]} 29. Qd2
{[%clk 00:53:50]} {[%emt 00:01:06]} Rg5 {[%clk 00:01:40]} {[%emt 00:00:14]} 30.
Qf4 {[%clk 00:49:44]} {[%emt 00:04:36]} Be8 {[%clk 00:01:17]} {[%emt 00:00:54]}
31. Rxh6+ {[%clk 00:49:37]} {[%emt 00:00:37]} 1-0

[Event "European Women's Chess Championship (49-84)"]
[Site "Batumi, Georgia"]
[Date "2026.05.25"]
[Round "1.60"]
[White "Kalandadze, Mariam"]
[Black "Purtseladze, Maka"]
[Result "0-1"]
[TimeControl "90min /40moves + 30min + 30-sec increment from move 1"]
[WhiteTitle "-"]
[BlackTitle "-"]
[WhiteFideId "13621122"]
[BlackFideId "13602659"]
[WhiteElo "1892"]
[BlackElo "2237"]

1. d4 {[%clk 01:30:57]} {[%emt 00:00:02]} d5 {[%clk 01:30:53]} {[%emt
00:00:07]} 2. c4 {[%clk 01:31:23]} {[%emt 00:00:05]} dxc4 {[%clk 01:31:11]}
{[%emt 00:00:12]} 3. Nf3 {[%clk 01:31:46]} {[%emt 00:00:05]} Nf6 {[%clk
01:31:32]} {[%emt 00:00:10]} 4. e3 {[%clk 01:32:12]} {[%emt 00:00:05]} e6
{[%clk 01:31:51]} {[%emt 00:00:11]} 5. Bxc4 {[%clk 01:32:34]} {[%emt 00:00:07]}
a6 {[%clk 01:32:15]} {[%emt 00:00:06]} 6. a4 {[%clk 01:32:29]} {[%emt
00:00:36]} c5 {[%clk 01:32:38]} {[%emt 00:00:07]} 7. O-O {[%clk 01:32:42]}
{[%emt 00:00:17]} Nc6 {[%clk 01:33:05]} {[%emt 00:00:03]} 8. Nc3 {[%clk
01:32:43]} {[%emt 00:00:29]} Be7 {[%clk 01:32:56]} {[%emt 00:00:38]} 9. Qe2
{[%clk 01:28:56]} {[%emt 00:04:17]} cxd4 {[%clk 01:33:15]} {[%emt 00:00:11]} 10.
Rd1 {[%clk 01:29:10]} {[%emt 00:00:17]} O-O {[%clk 01:33:36]} {[%emt 00:00:09]}
11. exd4 {[%clk 01:28:06]} {[%emt 00:01:33]} Nb4 {[%clk 01:33:49]} {[%emt
00:00:17]} 12. Bg5 {[%clk 01:23:52]} {[%emt 00:04:44]} Bd7 {[%clk 01:30:21]}
{[%emt 00:03:58]} 13. Ne5 {[%clk 01:17:20]} {[%emt 00:07:02]} Bc6 {[%clk
01:30:33]} {[%emt 00:00:18]} 14. Nxf7 {[%clk 01:06:28]} {[%emt 00:11:22]} Rxf7
{[%clk 01:30:29]} {[%emt 00:00:35]} 15. Qxe6 {[%clk 01:06:27]} {[%emt
00:00:29]} Nfd5 {[%clk 01:17:33]} {[%emt 00:13:27]} 16. Bf4 {[%clk 00:52:32]}
{[%emt 00:14:25]} Qc8 {[%clk 01:11:58]} {[%emt 00:06:04]} 17. Qe5 {[%clk
00:46:50]} {[%emt 00:06:13]} Qf5 {[%clk 01:08:36]} {[%emt 00:03:53]} 18. Nxd5
{[%clk 00:44:18]} {[%emt 00:03:01]} Bxd5 {[%clk 01:07:41]} {[%emt 00:01:25]} 19.
Bxd5 {[%clk 00:41:48]} {[%emt 00:03:00]} Nxd5 {[%clk 01:08:03]} {[%emt
00:00:08]} 20. Bg3 {[%clk 00:41:47]} {[%emt 00:00:30]} Bg5 {[%clk 01:07:11]}
{[%emt 00:01:23]} 21. Ra3 {[%clk 00:37:54]} {[%emt 00:04:24]} Bf4 {[%clk
01:06:22]} {[%emt 00:01:18]} 22. Bxf4 {[%clk 00:36:52]} {[%emt 00:01:32]} Nxf4
{[%clk 01:06:45]} {[%emt 00:00:07]} 23. Re3 {[%clk 00:33:09]} {[%emt 00:04:13]}
Qg4 {[%clk 01:06:38]} {[%emt 00:00:37]} 0-1